Cogmind - Beta 9.4 @@@ ROGUE MODE // 2020.01.23 @ 00:49:55 // Winter2019/RPGLIKE Player: Rumbl3 Result: Destroyed by S-43 Plague with Heavy Machine Gun Performance ------------- Evolutions (9) 4500 Regions Visited (30) 6000 Robots Destroyed (221) 1105 Value Destroyed (10315) 10315 Prototype IDs (68) 1360 Alien Tech Used (2) 400 Bonus (16519) 16519 TOTAL SCORE: 40199 Bonus ------- Triggered High Security 500 High Alert Combat Kills 994 Follower Combat Kills 3767 Network Hubs Disabled 400 Met Imprinter 300 Met Zhirov 300 Met Warlord at Base 500 MAIN.C Attacked Warlord 500 Warlord Defense Kill 470 Built Enhanced Grunts 300 Met R17 at Cetus 500 Met Warlord at Research 2000 Acquired SGEMP 2000 Delivered SGEMP 2000 Met MAIN.C 5000 Friendly Fire -3012 Cogmind --------- Core Integrity 0/2450 Matter 44/300 Energy 690/700 System Corruption 30% Temperature Cool (4) Movement Hovering (40) Location -1/Command Parts ------- > --- POWER (2) -------- Vortex Chain Reactor > --- PROPULSION (4) --- Cooled Antigrav System Cooled Antigrav System Cooled Antigrav System Combat Linear Gravjet > --- UTILITY (14) ----- Power Amplifier Experimental Coolant Injector Long-range Sensor Array Experimental Signal Interpreter Improved Terrain Scanner Advanced Targeting Computer Advanced Core Analyzer Precision Energy Filter Particle Accelerator Advanced Transmission Jammer Advanced Reaction Control System Experimental Phase Shifter Improved Hacking Suite > --- WEAPON (4) ------- Advanced Variable Charge Gun Enhanced Quantum Rifle Particle Cleaver > --- INVENTORY (7) ---- Protomatter-74 Improved Stasis Canceller Transdimensional Reconstructor Vortex Rail Improved KE Penetrator Mini Smartbomb Launcher Advanced Remote Datajack Peak State ------------ > --- POWER ------------ Vortex Chain Reactor > --- PROPULSION ------- Cooled Airjet Cooled Antigrav System Cooled Antigrav System Cooled Antigrav System > --- UTILITY ---------- Power Amplifier Experimental Coolant Injector Long-range Sensor Array Experimental Signal Interpreter Improved Terrain Scanner Advanced Targeting Computer Advanced Core Analyzer Precision Energy Filter Particle Accelerator Advanced Transmission Jammer Advanced Reaction Control System Experimental Phase Shifter Centrium Medium Armor Plating Improved Hacking Suite > --- WEAPON ----------- Advanced Variable Charge Gun Enhanced Quantum Rifle Advanced Remote Datajack Particle Cleaver > --- INVENTORY -------- Protomatter Improved Stasis Canceller Transdimensional Reconstructor Gatling Laser Vortex Rail Improved KE Penetrator Mini Smartbomb Launcher [Rating: 183] Favorites ----------- Power Vortex Chain Reactor Engine Cooled Deuterium Engine Power Core Fission Core Reactor Vortex Chain Reactor Propulsion Cooled Airjet Leg Aluminum Leg Wheel Wheel Hover Unit Cooled Airjet Flight Unit Xenon Bombardment Thruster Utility Improved Terrain Scanner Device Improved Terrain Scanner Storage Experimental Matter Compressor Processor Advanced Signal Interpreter Hackware Improved Hacking Suite Protection Centrium Medium Armor Plating Weapon Gatling Laser Energy Gun Gatling Laser Ballistic Gun Gauss Rifle Launcher Shock Bomb Launcher Special Weapon Advanced Remote Datajack Impact Weapon Gravity Flail Slashing Weapon Phasing Sabre Piercing Weapon Heavy Pick Build | -11 -10 -10 -10 -9 -8 -7 -7 -7 -7 -6 -6 -6 -6 -6 -6 -5 -5 -5 -5 -4 -4 -4 -4 -4 -3 -3 -3 -2 -1 -1 ------- Run | Scr Mat Min Exi Min Mat Fac Low Low Zio Pro Fac Ext Cet Arc Hub Fac Upp Upp War Pro Fac Upp Upp Zhi Pro Res Tes Res Acc Com Slots Evolved 19 | 3 . . . . 2 3 . . . . 2 1 1 . . . . . 3 1 1 . . . . . 1 . . 1 Power 1 | . . . . . . . . . . . . 1 . . . . . . . . . . . . . . . . . . Propulsion 3 | 1 . . . . 1 . . . . . . . . . . . . . 1 . . . . . . . . . . . Utility 13 | 1 . . . . 1 2 . . . . 2 . 1 . . . . . 2 1 1 . . . . . 1 . . 1 Weapon 2 | 1 . . . . . 1 . . . . . . . . . . . . . . . . . . . . . . . . Parts Attached 224 | 6 1 1 . . 14 16 2 3 4 3 23 15 13 2 2 1 1 . 13 5 6 3 4 3 2 14 27 20 . 20 Power 8 | . . 1 . . 1 1 . 1 . . 2 1 . . . . . . 1 . . . . . . . . . . . Engine 4 | . . . . . 1 1 . . . . 2 . . . . . . . . . . . . . . . . . . . Core 3 | . . 1 . . . . . 1 . . . 1 . . . . . . . . . . . . . . . . . . Reactor 1 | . . . . . . . . . . . . . . . . . . . 1 . . . . . . . . . . . Propulsion 25 | 2 . . . . 6 6 . . . . 2 2 . . 1 . . . 3 . . . . . . . . 2 . 1 Treads . | . . . . . . . . . . . . . . . . . . . . . . . . . . . . . . . Leg . | . . . . . . . . . . . . . . . . . . . . . . . . . . . . . . . Wheel 2 | 2 . . . . . . . . . . . . . . . . . . . . . . . . . . . . . . Hover 19 | . . . . . 5 3 . . . . 2 2 . . 1 . . . 3 . . . . . . . . 2 . 1 Flight 4 | . . . . . 1 3 . . . . . . . . . . . . . . . . . . . . . . . . Utility 72 | 2 1 . . . 3 2 . . 1 . 8 . 2 . . . . . 5 2 3 . 1 3 . 7 15 9 . 8 Device 48 | 1 . . . . 2 1 . . . . 5 . . . . . . . 4 2 2 . 1 3 . 5 11 6 . 5 Storage 1 | . . . . . . . . . . . . . . . . . . . . . . . . . . 1 . . . . Processor 15 | 1 1 . . . 1 . . . 1 . . . 1 . . . . . 1 . 1 . . . . 1 4 2 . 1 Hackware 2 | . . . . . . . . . . . . . . . . . . . . . . . . . . . . . . 2 Protection 6 | . . . . . . 1 . . . . 3 . 1 . . . . . . . . . . . . . . 1 . . Artifact . | . . . . . . . . . . . . . . . . . . . . . . . . . . . . . . . Weapon 119 | 2 . . . . 4 7 2 2 3 3 11 12 11 2 1 1 1 . 4 3 3 3 3 . 2 7 12 9 . 11 Energy Gun 32 | 1 . . . . 3 1 . . . 1 . 3 3 . . . . . 2 . 2 . 2 . 1 1 5 3 . 4 Energy Cannon . | . . . . . . . . . . . . . . . . . . . . . . . . . . . . . . . Ballistic Gun 28 | 1 . . . . 1 4 1 1 . 1 8 2 3 1 1 . . . 1 . . . . . . . . . . 3 Ballistic Cannon . | . . . . . . . . . . . . . . . . . . . . . . . . . . . . . . . Launcher 22 | . . . . . . . . . 1 . 2 4 2 . . 1 1 . 1 2 . 2 1 . . 2 1 1 . 1 Special Weapon 3 | . . . . . . . . . . . . . . . . . . . . . . . . . . . 1 1 . 1 Impact Weapon 11 | . . . . . . 2 1 1 1 . . . . . . . . . . . . . . . . 3 3 . . . Slashing Weapon 22 | . . . . . . . . . 1 1 1 3 3 1 . . . . . 1 1 1 . . 1 1 1 4 . 2 Piercing Weapon 1 | . . . . . . . . . . . . . . . . . . . . . . . . . . . 1 . . . Special Melee Weapon . | . . . . . . . . . . . . . . . . . . . . . . . . . . . . . . . Unidentified Prototypes 37 | . . . . . 1 3 . . . . 3 . 3 . . . . . 5 1 1 . . 2 . 4 6 5 . 3 Parts Lost 2 | . . . . . . . . . . . . . . . . . . . . . . . . . . . . . . 2 Power . | . . . . . . . . . . . . . . . . . . . . . . . . . . . . . . . Propulsion . | . . . . . . . . . . . . . . . . . . . . . . . . . . . . . . . Utility 1 | . . . . . . . . . . . . . . . . . . . . . . . . . . . . . . 1 Weapon 1 | . . . . . . . . . . . . . . . . . . . . . . . . . . . . . . 1 Highest Loss Streak 2 | . . . . . . . . . . . . . . . . . . . . . . . . . . . . . . 2 Average Slot Usage (%) 97 | . 100 100 100 100 99 100 100 100 99 100 100 99 100 100 100 100 100 100 96 94 95 95 95 93 95 94 94 94 95 93 Engine 2 | . 14 10 . . 6 8 8 1 . . . 6 6 6 6 6 6 6 2 . . . . . . . . . . . Core 2 | . . 4 14 14 5 . . 6 8 8 6 4 6 6 6 6 6 6 2 . . . . . . . . . . . Reactor 2 | . . . . . . . . . . . . . . . . . . . 2 4 4 4 4 4 4 4 4 4 4 4 Wheel 1 | . 28 28 28 28 2 . . . . . . . . . . . . . . . . . . . . . . . . . Hover 18 | . . . . . 29 19 25 25 25 25 22 20 19 18 18 18 18 18 21 19 18 18 18 18 18 18 17 17 17 15 Device 32 | . 14 14 14 14 17 20 25 25 25 25 31 33 32 31 31 31 31 31 33 36 38 40 40 38 40 41 40 38 39 37 Processor 9 | . 14 14 14 14 11 8 8 8 8 8 7 6 6 12 12 12 12 12 10 9 9 9 9 9 9 7 9 13 13 11 Protection 4 | . . . . . . 7 8 8 8 8 7 6 6 6 6 6 6 6 5 4 4 4 4 4 4 4 4 4 4 3 Energy Gun 7 | . . . . . 5 . . . . . . 10 7 12 11 6 6 6 7 9 13 10 9 13 16 12 13 13 13 11 Ballistic Gun 5 | . 28 28 28 28 18 17 20 20 16 11 13 3 4 3 . 2 . . . . . . . . . . . . . . Launcher 1 | . . . . . . . . . . 4 2 2 2 . . 3 6 6 5 3 . 4 3 . . . . . . 1 Impact Weapon 1 | . . . . . . 8 3 3 3 . . . . . . . . . . . . . . . . 3 1 . . . Slashing Weapon 3 | . . . . . . . . . 4 7 6 3 3 3 6 6 6 6 2 4 3 2 4 4 1 . 1 4 4 3 Naked Turns . | . . . . . . . . . . . . . . . . . . . . . . . . . . . . . . . Heaviest Build 93 | 9 9 9 9 9 21 29 30 30 29 29 38 48 53 52 52 53 53 52 68 73 78 82 79 78 77 79 93 78 76 85 Greatest Support 112 | 31 31 31 31 31 38 40 40 40 40 40 46 51 56 56 56 55 55 55 81 81 81 81 81 81 81 81 81 88 88 112 Greatest Overweight (x) 1 | . . . . . . 1 . . . . . 1 1 . . . . . . . . 1 . . . . 1 . . 1 Average Overweight (x) . | . . . . . . . . . . . . . . . . . . . . . . . . . . . . . . . Largest Inventory Capacity 7 | 2 2 2 2 2 3 3 3 4 5 5 5 5 6 6 6 6 6 6 6 6 6 6 6 7 7 7 7 7 7 7 Average Capacity 5 | 2 2 2 2 2 2 3 3 3 4 5 5 5 5 6 6 6 6 6 6 6 6 6 6 6 7 7 7 7 7 7 Most Carried 7 | 2 2 2 2 2 3 3 3 4 5 5 5 5 6 6 6 6 6 6 6 6 6 6 6 7 7 7 7 7 7 7 Average Carried 5 | 1 2 2 2 2 2 2 3 3 4 4 4 5 5 6 5 5 6 6 5 5 5 6 6 6 7 6 6 7 6 6 Final Capacity 7 | 2 2 2 2 2 3 3 3 4 5 5 5 5 6 6 6 6 6 6 6 6 6 6 6 7 7 7 7 7 7 7 Final Carried 7 | 2 2 2 2 2 3 3 3 4 5 4 5 5 6 6 6 6 6 6 6 5 6 6 6 7 7 6 7 7 7 7 Class Distribution -------------------- 38% | Scavenger-Ninja 18% | Scavenger-Scout 17% | Scout 8% | Commander-Scout 7% | Mutant Dominant Class ---------------- Mutant | -10/Materials Mutant | -10/Mines Mutant | -10/Exiles Mutant | -9/Mines Mutant | -8/Materials Scout | -7/Factory Scout | -7/Lower Caves Scout | -7/Lower Caves Scout | -7/Zion Scout | -6/Proximity Caves Scavenger-Scout | -6/Factory Commander-Scout | -6/Extension Commander-Scout | -6/Cetus Commander-Scout | -6/Archives Commander-Scout | -6/Hub_04(d) Scavenger-Scout | -5/Factory Scavenger-Scout | -5/Upper Caves Scavenger-Scout | -5/Upper Caves Scavenger-Scout | -5/Warlord Scavenger-Ninja | -4/Proximity Caves Scavenger-Ninja | -4/Factory Scavenger-Ninja | -4/Upper Caves Scavenger-Ninja | -4/Upper Caves Scavenger-Ninja | -4/Zhirov Scavenger-Scout | -3/Proximity Caves Scavenger-Ninja | -3/Research Scavenger-Ninja | -3/Testing Scavenger-Ninja | -2/Research Scavenger-Ninja | -1/Access Scavenger-Ninja | -1/Command Resources | -11 -10 -10 -10 -9 -8 -7 -7 -7 -7 -6 -6 -6 -6 -6 -6 -5 -5 -5 -5 -4 -4 -4 -4 -4 -3 -3 -3 -2 -1 -1 ----------- Run | Scr Mat Min Exi Min Mat Fac Low Low Zio Pro Fac Ext Cet Arc Hub Fac Upp Upp War Pro Fac Upp Upp Zhi Pro Res Tes Res Acc Com Matter Collected 4503 | 297 38 53 . 40 172 438 280 140 30 287 395 225 257 36 28 75 60 70 155 81 82 65 65 50 10 169 400 210 . 295 Remotely . | . . . . . . . . . . . . . . . . . . . . . . . . . . . . . . . Salvage Created 9687 | 97 41 . . 116 210 438 523 148 . 769 572 468 273 40 428 122 202 229 166 127 832 69 221 101 119 898 618 311 486 1063 Parts 453 | 6 7 . . 4 15 26 13 15 . 22 38 20 10 1 37 7 10 5 1 9 37 12 21 2 2 28 34 3 26 42 Haulers Intercepted 8 | . . . . . . 1 . . . . 3 . . . . . . . . . 1 . . . . 1 . 2 . . Recyclers Shooed 4 | . . . . . 1 1 . . . . . . . . . . . . . . . . . . . . . . . 2 Parts Field Recycled . | . . . . . . . . . . . . . . . . . . . . . . . . . . . . . . . Retrieved Matter . | . . . . . . . . . . . . . . . . . . . . . . . . . . . . . . . Parts Self-Destructed 111 | . . . . . . . 13 14 . 12 . . . . . . 4 1 55 6 . 2 . 2 2 . . . . . Prevented 53 | . . . . . . . . . . 10 . . . . . . 5 3 28 2 . 5 . . . . . . . . Kills | -11 -10 -10 -10 -9 -8 -7 -7 -7 -7 -6 -6 -6 -6 -6 -6 -5 -5 -5 -5 -4 -4 -4 -4 -4 -3 -3 -3 -2 -1 -1 ------- Run | Scr Mat Min Exi Min Mat Fac Low Low Zio Pro Fac Ext Cet Arc Hub Fac Upp Upp War Pro Fac Upp Upp Zhi Pro Res Tes Res Acc Com Combat Hostiles Destroyed 150 | . 2 . . 2 5 9 6 5 . 11 9 4 3 . 8 4 5 1 6 8 7 6 5 . 1 10 13 2 5 13 Melee 7 | . . . . . . . . . . 2 1 1 . . 1 . . . . . . . . . . . 1 1 . . Guns 95 | . 2 . . 2 5 9 6 5 . 4 2 3 1 . 7 1 2 1 . 3 7 1 2 . 1 7 11 1 3 9 AOE 36 | . . . . . . . . . . 4 6 . . . . 3 2 . 6 5 . 5 1 . . . . . . 4 Classes Destroyed 21 | 2 3 . . 1 1 4 1 . . . 1 1 . . 1 . . . . . 1 . 1 . . . 4 . . . Worker 20 | . . . . . . . . . . . 1 . . . 5 1 . . . . 7 . . . . . 1 . 3 2 Builder 6 | . . . . . . . . . . . . . . . . . . . . . 3 . . . . 1 . . 2 . Tunneler 3 | 1 . . . . . . . . . . 1 . . . . . . . . . 1 . . . . . . . . . Hauler 8 | . . . . . . 1 . . . . 3 . . . . . . . . . 1 . . . . 1 . 2 . . Recycler 7 | 1 . . . . 1 . . . . . . 1 . . . 1 . . . . . . . . . 1 . . . 2 Mechanic 1 | . 1 . . . . . . . . . . . . . . . . . . . . . . . . . . . . . Operator 5 | . . . . . . 1 . . . . . 1 . 1 . . . . . . . . . . . . . . . 2 Drone 1 | . . . . . . . . . . . . . . . . . . . . . . . . . . . 1 . . . Watcher 15 | . 1 . . . . 1 . . . . 2 . 1 . 1 . . . . . . . . . . 3 1 2 3 . Swarmer 35 | . . . . . 1 . . . . 2 6 . . . . 4 . . 4 5 . 6 . . . . 3 . . 4 Grunt 44 | . 2 . . 1 4 6 4 3 . 6 . 1 . . 3 . 3 . 1 3 3 . . . . 2 1 1 . . Brawler 4 | . . . . . . . 1 1 . 1 . . . . . . 1 . . . . . . . . . . . . . Duelist 4 | . . . . 1 . . 1 1 . 1 . . . . . . . . . . . . . . . . . . . . Researcher 1 | . . . . . . . . . . . . . . . . . . . . . . . . . . . 1 . . . Sentry 28 | . . . . . . 1 . 1 . 1 3 1 . . 3 . 1 . . . 4 . . . 1 6 . . 3 3 Hunter 3 | . . . . . . . . . . . . . . . 1 . . . 1 . . . . . . . . . . 1 Programmer 18 | . . . . . . 2 . . . . . . . . 1 . . . . . . . . . . 2 6 . 2 5 Behemoth 3 | . . . . . . . . . . . . 2 . . . . . 1 . . . . . . . . . . . . Cetus Guard 3 | . . . . . . . . . . . . . 3 . . . . . . . . . . . . . . . . . Striker 3 | . . . . . . . . . . . . . . . . . . . . . . . . . . . 2 1 . . Alpha 7 1 | . . . . . . . . . . . . . . . . . . . . . . . . . . . 1 . . . Thug 5 | . . . . . . . . . . . . . . . 1 . . . . . . . 4 . . . . . . . Guerrilla 1 | . . . . . . . . . . . . . . . 1 . . . . . . . . . . . . . . . Mutant 1 | . . . . . . . . . . . . . . . . . . . . . . . 1 . . . . . . . Best Kill Streak 9 | 2 2 . . 2 2 3 3 4 . 3 4 2 3 1 6 6 4 1 5 5 9 5 4 . 1 4 6 3 4 4 Combat Bots Only 6 | . 2 . . 2 2 3 3 4 . 3 4 2 2 . 3 4 4 1 5 5 2 5 4 . 1 2 6 1 2 4 Max Kills in Single Turn 5 | 1 1 . . 1 1 1 2 3 . 1 2 1 1 1 3 3 2 1 3 4 5 3 1 . 1 1 2 1 1 2 Gunslinging . | . . . . . . . . . . . . . . . . . . . . . . . . . . . . . . . Exploded 4 | . . . . . . . . . . 1 2 . . . . 2 2 . 3 4 . 2 1 . . . . . . 2 Melee 1 | . . . . . . . . . . 1 1 1 . . 1 . . . . . . . . . . . 1 1 . . Uniques/NPCs Destroyed 1 | . . . . . . . . . . . . . 1 . . . . . . . . . . . . . . . . . A7 (-6/Cetus) Combat | -11 -10 -10 -10 -9 -8 -7 -7 -7 -7 -6 -6 -6 -6 -6 -6 -5 -5 -5 -5 -4 -4 -4 -4 -4 -3 -3 -3 -2 -1 -1 -------- Run | Scr Mat Min Exi Min Mat Fac Low Low Zio Pro Fac Ext Cet Arc Hub Fac Upp Upp War Pro Fac Upp Upp Zhi Pro Res Tes Res Acc Com Damage Taken 14520 | . 107 43 . 167 225 885 63 101 . 919 620 457 383 158 1112 160 141 230 122 87 256 65 102 . 315 894 2120 267 198 4323 Core 10403 | . 83 36 . 140 179 653 36 61 . 655 422 339 283 116 820 111 105 172 86 54 162 50 64 . 248 654 1514 195 142 3023 Absorbed by Shields 923 | . . . . . . . . . . . . 77 242 . . . . . . 79 46 . . . . . 479 . . . Redirected to Core 8829 | . 69 26 . 92 162 508 36 61 . 559 353 227 232 116 613 99 88 100 86 54 162 50 61 . 176 605 1349 137 142 2666 Core Remaining (%) 80 | 100 . . . 76 100 . . . . 94 . . . . 57 . . . . 100 . . . . 75 . 18 100 . . Volleys Fired 461 | 12 15 . . 11 14 34 18 10 . 30 20 16 12 4 22 11 10 14 7 9 20 7 9 . 1 34 36 14 20 51 Largest 4 | 2 2 . . 2 2 2 3 3 . 3 3 3 3 2 2 2 2 2 3 3 4 3 3 . 4 3 4 3 3 4 Hottest 414 | 40 40 . . 40 97 56 81 81 . 136 84 196 151 115 275 119 116 116 196 196 334 210 254 . 334 414 334 254 254 414 Shots Fired 1072 | 24 30 . . 22 28 68 54 30 . 60 35 37 35 6 42 14 17 19 14 17 65 16 27 . 4 99 96 29 58 126 Gun 957 | 24 30 . . 22 28 68 54 30 . 41 30 29 24 6 42 9 8 5 9 12 65 9 20 . 4 99 90 28 58 113 Cannon . | . . . . . . . . . . . . . . . . . . . . . . . . . . . . . . . Launcher 110 | . . . . . . . . . . 19 5 8 11 . . 5 9 14 5 5 . 7 7 . . . 3 . . 12 Special 5 | . . . . . . . . . . . . . . . . . . . . . . . . . . . 3 1 . 1 Kinetic 354 | 24 30 . . 22 20 68 54 30 . 38 30 5 12 4 2 . . . . . . . . . . . . . . 15 Thermal 596 | . . . . . 8 . . . . 3 . 24 12 2 40 9 8 5 9 12 65 9 20 . 4 99 90 28 58 91 Explosive 29 | . . . . . . . . . . . 5 2 . . . 5 . . . 2 . . . . . . 3 . . 12 Electromagnetic 81 | . . . . . . . . . . 19 . 6 11 . . . 9 14 5 3 . 7 7 . . . . . . . Entropic 7 | . . . . . . . . . . . . . . . . . . . . . . . . . . . . . . 7 Robot Hit Streak 33 | 4 11 . . 7 15 18 6 4 . 15 17 10 10 6 12 4 11 16 4 8 22 2 8 . 4 16 23 7 13 33 Robot Miss Streak 5 | 2 2 . . 2 2 4 4 4 . 4 3 3 2 2 5 1 1 1 3 3 3 5 2 . 1 4 5 2 3 4 Penetration Max 1 | . . . . . . 1 1 1 . 1 . . . . . . . . . . . . . . . . . . . . Secondary Targets 6 | . . . . . . . 2 . . . . . . . . . . . . . . . . . . 1 3 . . . Max Gunslinging Chain 1 | . . . . . . . 1 . . . . . . . . . . . . . . . . . . 1 1 . . . Shots Hit Robots 896 | 14 21 . . 12 21 56 34 15 . 37 29 42 31 8 38 9 15 12 4 11 66 3 22 3 4 98 89 32 59 111 Core Hits 597 | 3 9 . . 6 21 26 13 12 . 25 22 25 26 4 47 8 13 4 19 17 46 10 15 2 2 46 54 14 35 73 Critical Hits 9 | . . . . 1 . 1 . . . . . . 1 . . . . 1 . . . . . . . . . . 1 4 Critical Kills 1 | . . . . 1 . . . . . . . . . . . . . . . . . . . . . . . . . . Critical Parts Destroyed 4 | . . . . . . 1 . . . . . . 1 . . . . 1 . . . . . . . . . . 1 . Melee Attacks 428 | . . . . . . 30 5 5 1 13 22 23 13 6 25 10 2 6 3 8 22 4 6 5 3 67 39 23 18 69 Impact 122 | . . . . . . 30 5 5 1 . . . . . . . . . . . . . . . . 58 23 . . . Slashing 306 | . . . . . . . . . . 13 22 23 13 6 25 10 2 6 3 8 22 4 6 5 3 9 16 23 18 69 Piercing . | . . . . . . . . . . . . . . . . . . . . . . . . . . . . . . . Sneak Attacks 47 | . . . . . . 3 . . . . 4 4 3 1 5 . . . . . 6 . . . . 3 3 3 5 7 Combat Hostiles 3 | . . . . . . . . . . . . 1 . . 1 . . . . . . . . . . . 1 . . . Follow-up Attacks . | . . . . . . . . . . . . . . . . . . . . . . . . . . . . . . . Damage Inflicted 40976 | 111 232 . . 109 398 1770 1034 414 . 1916 1886 1798 1575 401 2405 916 790 531 892 826 2662 356 784 526 149 3654 3406 1764 2597 7074 Guns 19406 | 111 232 . . 109 398 1192 663 414 . 618 385 714 579 85 758 214 325 150 156 302 1447 50 387 . 149 2672 2124 346 1370 3456 Cannons . | . . . . . . . . . . . . . . . . . . . . . . . . . . . . . . . Explosions 8790 | . . . . . . 70 . . . 636 634 208 695 . 918 702 465 152 736 524 279 306 397 . . . 346 . . 1722 Melee 12646 | . . . . . . 508 371 . . 662 836 876 301 316 729 . . 229 . . 936 . . 526 . 982 929 1322 1227 1896 Ramming 134 | . . . . . . . . . . . 31 . . . . . . . . . . . . . . . 7 96 . . Kinetic 4517 | 111 232 . . 109 285 1192 663 414 . 549 385 21 216 47 . . . . . . . . . . . . . . . 293 Thermal 15896 | . . . . . 113 70 . . . 192 . 693 553 38 1014 214 467 150 602 302 1485 170 387 . 149 2672 2124 346 1370 2785 Explosive 3971 | . . . . . . . . . . . 634 136 . . . 702 . . . 431 . . . . . . 346 . . 1722 Electromagnetic 3434 | . . . . . . . . . . 513 . 72 505 . 662 . 323 152 290 93 241 186 397 . . . . . . . Impact 1951 | . . . . . . 508 371 . . . . . . . . . . . . . . . . . . 982 90 . . . Slashing 10695 | . . . . . . . . . . 662 836 876 301 316 729 . . 229 . . 936 . . 526 . . 839 1322 1227 1896 Piercing . | . . . . . . . . . . . . . . . . . . . . . . . . . . . . . . . Entropic 378 | . . . . . . . . . . . . . . . . . . . . . . . . . . . . . . 378 Highest Corruption 30 | . . . . . 5 3 3 3 3 . . 1 1 1 8 . . . 3 . . 1 1 1 1 3 8 1 1 30 Average Corruption 3 | . . . . . 5 2 3 3 3 . . 1 1 1 1 . . . 2 . . 1 1 1 1 2 5 1 1 9 Corruption Purged . | . . . . . . . . . . . . . . . . . . . . . . . . . . . . . . . Effects 138 | . . . . . . 7 6 9 1 . . . 1 1 6 . . . . . . . 2 . . 11 33 6 . 55 Message Errors 30 | . . . . . . 2 . 3 1 . . . 1 . 2 . . . . . . . . . . 2 6 4 . 9 Matter Fused 18 | . . . . . . 1 2 . . . . . . . . . . . . . . . . . . 2 6 . . 7 Heat Flow Errors 13 | . . . . . . 1 . 1 . . . . . . 2 . . . . . . . . . . . 2 . . 7 Energy Discharges 11 | . . . . . . 1 2 1 . . . . . . . . . . . . . . . . . 2 3 . . 2 Parts Rejected 2 | . . . . . . . . . . . . . . . . . . . . . . . . . . . . . . 2 Data Loss (minor) 12 | . . . . . . . 1 2 . . . . . 1 . . . . . . . . 1 . . 1 3 1 . 2 Data Loss (major) 3 | . . . . . . . . . . . . . . . . . . . . . . . . . . . 1 . . 2 Misfires 3 | . . . . . . . . . . . . . . . . . . . . . . . . . . . . . . 3 Alerts 2 | . . . . . . . . . . . . . . . . . . . . . . . . . . . . . . 2 Misdirections 5 | . . . . . . . . . . . . . . . . . . . . . . . . . . . . . . 5 Targeting Errors 37 | . . . . . . 2 1 2 . . . . . . 2 . . . . . . . 1 . . 4 10 1 . 14 Weapon Failures 2 | . . . . . . . . . . . . . . . . . . . . . . . . . . . 2 . . . Overload Shots 4 | . . . . . . . . . . . . . . . 1 . . . . . . . . . . 2 . . . 1 Effects 1 | . . . . . . . . . . . . . . . . . . . . . . . . . . 1 . . . . Short Circuit 1 | . . . . . . . . . . . . . . . . . . . . . . . . . . 1 . . . . Overflow Damage 3971 | . . . . . . 361 271 . . 277 149 180 . 175 42 19 1 96 . 7 427 . 1 173 . 112 57 356 153 1114 Projectiles . | . . . . . . . . . . . . . . . . . . . . . . . . . . . . . . . Explosions 268 | . . . . . . . . . . 21 51 12 . . 42 19 1 . . 7 16 . 1 . . . 9 . . 89 Melee 3703 | . . . . . . 361 271 . . 256 98 168 . 175 . . . 96 . . 411 . . 173 . 112 48 356 153 1025 Knockbacks 7 | . . . . . . 3 1 . . . . . . . . . . . . . . . . . . 2 1 . . . Impact 7 | . . . . . . 3 1 . . . . . . . . . . . . . . . . . . 2 1 . . . Kinetic . | . . . . . . . . . . . . . . . . . . . . . . . . . . . . . . . Secondary . | . . . . . . . . . . . . . . . . . . . . . . . . . . . . . . . Self-Inflicted Damage 421 | . . . . . . 86 . . . 10 15 35 . . 187 . . . . . . 11 14 . . . 15 48 . . Shots 9 | . . . . . . 1 . . . 1 . 1 . . 2 . . . . . . 1 2 . . . 1 . . . Rammed 3 | . . . . . . . . . . . 1 . . . . . . . . . . . . . . . 1 1 . . Targets Rammed 3 | . . . . . . . . . . . 1 . . . . . . . . . . . . . . . 1 1 . . Kicked . | . . . . . . . . . . . . . . . . . . . . . . . . . . . . . . . Crushed . | . . . . . . . . . . . . . . . . . . . . . . . . . . . . . . . Highest Temperature 442 | . 9 . . 10 255 228 9 253 . 36 . 283 192 3 244 . 2 5 132 195 198 194 198 . 136 442 198 162 168 199 Average Temperature 88 | . 8 . . 4 79 61 3 45 . 18 . 80 79 3 49 . 2 5 58 111 108 108 116 . 82 127 101 54 90 91 Received Heat Transfer 1632 | . 60 . . 36 117 192 36 18 . 201 183 96 37 18 159 9 36 30 . 16 31 . 27 . . 105 36 9 9 171 Effects 5 | . . . . . . . . . . . . . . . . . . . . . . . . . . 5 . . . . Energy Bleed 1 | . . . . . . . . . . . . . . . . . . . . . . . . . . 1 . . . . Interference 3 | . . . . . . . . . . . . . . . . . . . . . . . . . . 3 . . . . Damage (minor) 1 | . . . . . . . . . . . . . . . . . . . . . . . . . . 1 . . . . Siege Activations . | . . . . . . . . . . . . . . . . . . . . . . . . . . . . . . . Robots Corrupted 6 | . . . . . . . . . . 1 . . 2 . . . 1 . . . . . 2 . . . . . . . Combat Hostiles 6 | . . . . . . . . . . 1 . . 2 . . . 1 . . . . . 2 . . . . . . . Parts Fried 21 | . . . . . . 4 . . . 1 . . . . 1 . . . 4 . 1 . . . . 7 1 . 2 . Impact Corruptions 36 | . . . . . . 15 13 . . . . . . . . . . . . . . . . . . 6 1 1 . . Robots Melted 5 | . . . . . . . . . . . . . . . . . . . . . . . . . . 2 1 . 2 . Combat Hostiles 5 | . . . . . . . . . . . . . . . . . . . . . . . . . . 2 1 . 2 . Parts Melted 50 | . . . . . . . . . . . . 2 . . 2 . 1 . . 1 4 . . . . 11 16 . 4 9 Heat Transferred 20291 | . . . . . 185 50 . . . 300 . 1275 850 75 1426 222 396 148 556 499 2298 262 598 . 174 3166 3379 437 1715 2280 Parts Sabotaged . | . . . . . . . . . . . . . . . . . . . . . . . . . . . . . . . Parts Stolen . | . . . . . . . . . . . . . . . . . . . . . . . . . . . . . . . Parts Stripped . | . . . . . . . . . . . . . . . . . . . . . . . . . . . . . . . Power Chain Reactions 20 | . . . . . . . . . . 4 . 1 1 . 2 . 1 1 3 . 2 3 2 . . . . . . . Missiles Intercepted . | . . . . . . . . . . . . . . . . . . . . . . . . . . . . . . . Alert | -11 -10 -10 -10 -9 -8 -7 -7 -7 -7 -6 -6 -6 -6 -6 -6 -5 -5 -5 -5 -4 -4 -4 -4 -4 -3 -3 -3 -2 -1 -1 ------- Run | Scr Mat Min Exi Min Mat Fac Low Low Zio Pro Fac Ext Cet Arc Hub Fac Upp Upp War Pro Fac Upp Upp Zhi Pro Res Tes Res Acc Com Peak Influence 2231 | 10 83 31 . 80 237 402 . . . . 394 1241 1065 608 2231 1269 . . . . 520 . . . . 403 467 340 499 878 Average Influence 349 | 5 56 31 . 73 139 229 . . . . 138 595 862 564 956 1183 . . . . 214 . . . . 190 261 238 308 454 Maximum Alert Level 5 | . . . . . 1 2 . . . . 1 4 3 2 5 4 . . . . 2 . . . . 2 2 1 2 3 Low Security (%) 37 | 100 100 100 . 100 71 24 . . . . 66 17 . . . . . . . . 51 . . . . 53 27 43 29 8 Level 1 35 | . . . . . 28 69 . . . . 33 26 . . 28 . . . . . 39 . . . . 42 60 56 38 22 Level 2 15 | . . . . . . 5 . . . . . 24 15 100 5 . . . . . 9 . . . . 3 11 . 31 59 Level 3 6 | . . . . . . . . . . . . 15 84 . 14 . . . . . . . . . . . . . . 9 Level 4 5 | . . . . . . . . . . . . 15 . . 41 100 . . . . . . . . . . . . . . Level 5 . | . . . . . . . . . . . . . . . 1 . . . . . . . . . . . . . . . High Security . | . . . . . . . . . . . . . . . 9 . . . . . . . . . . . . . . . Max Security . | . . . . . . . . . . . . . . . . . . . . . . . . . . . . . . . Squads Dispatched 31 | . . . . . . 3 . 1 . 1 1 5 1 . 8 . . . . . 1 . . . . 2 2 1 1 4 Investigation 5 | . . . . . . . . . . . . 2 1 . 2 . . . . . . . . . . . . . . . Extermination 7 | . . . . . . 1 . . . . . . . . 1 . . . . . . . . . . 1 1 . 1 2 Reinforcement 14 | . . . . . . 2 . . . . 1 3 . . 3 . . . . . 1 . . . . 1 1 1 . 1 Assault 5 | . . . . . . . . 1 . 1 . . . . 2 . . . . . . . . . . . . . . 1 Garrison . | . . . . . . . . . . . . . . . . . . . . . . . . . . . . . . . Intercept . | . . . . . . . . . . . . . . . . . . . . . . . . . . . . . . . Construction Impeded 2 | . . . . . . . . . . . . 1 . . 1 . . . . . . . . . . . . . . . Haulers Reinforced 4 | . . . . . . 1 . . . . 1 . . . 1 . . . . . . . . . . 1 . . . . Stealth | -11 -10 -10 -10 -9 -8 -7 -7 -7 -7 -6 -6 -6 -6 -6 -6 -5 -5 -5 -5 -4 -4 -4 -4 -4 -3 -3 -3 -2 -1 -1 --------- Run | Scr Mat Min Exi Min Mat Fac Low Low Zio Pro Fac Ext Cet Arc Hub Fac Upp Upp War Pro Fac Upp Upp Zhi Pro Res Tes Res Acc Com Distress Signals 26 | . . . . . . 1 . . . . 1 . 2 . 4 1 . . 1 . 1 1 . . 6 . 1 6 . 1 Communications Jammed 109 | . . . . . . . . . . . . . . . . . . . . . 2 . . . 14 3 2 2 3 83 Distress Signals 109 | . . . . . . . . . . . . . . . . . . . . . 2 . . . 14 3 2 2 3 83 Times Spotted 405 | . 5 9 . 8 10 10 6 7 . 28 14 31 15 4 39 11 5 11 25 7 21 4 5 . 5 16 28 23 11 47 Peak Tracking Total 22 | . 2 3 . 8 5 3 3 11 . 9 4 4 5 3 22 6 4 10 10 4 11 4 3 . 5 3 7 5 2 12 Tactical Retreats 31 | . . . . . 1 . . 1 . 8 1 2 . . . . . 1 2 . 2 1 . . . 1 5 1 . 5 Traps | -11 -10 -10 -10 -9 -8 -7 -7 -7 -7 -6 -6 -6 -6 -6 -6 -5 -5 -5 -5 -4 -4 -4 -4 -4 -3 -3 -3 -2 -1 -1 ------- Run | Scr Mat Min Exi Min Mat Fac Low Low Zio Pro Fac Ext Cet Arc Hub Fac Upp Upp War Pro Fac Upp Upp Zhi Pro Res Tes Res Acc Com Traps Triggered 5 | . . . . . . . . . . . . 1 . . 1 . . . . . . . . . . 1 . . . 2 Indirectly 1 | . . . . . . . . . . . . . . . 1 . . . . . . . . . . . . . . . Trap Hack Attempts . | . . . . . . . . . . . . . . . . . . . . . . . . . . . . . . . Triggered . | . . . . . . . . . . . . . . . . . . . . . . . . . . . . . . . Disarmed . | . . . . . . . . . . . . . . . . . . . . . . . . . . . . . . . Reprogrammed . | . . . . . . . . . . . . . . . . . . . . . . . . . . . . . . . Reused . | . . . . . . . . . . . . . . . . . . . . . . . . . . . . . . . Traps Extracted . | . . . . . . . . . . . . . . . . . . . . . . . . . . . . . . . Installed . | . . . . . . . . . . . . . . . . . . . . . . . . . . . . . . . Triggered 6 | . . . . . . . . . . . . . . . . . . . 6 . . . . . . . . . . . Machines | -11 -10 -10 -10 -9 -8 -7 -7 -7 -7 -6 -6 -6 -6 -6 -6 -5 -5 -5 -5 -4 -4 -4 -4 -4 -3 -3 -3 -2 -1 -1 ---------- Run | Scr Mat Min Exi Min Mat Fac Low Low Zio Pro Fac Ext Cet Arc Hub Fac Upp Upp War Pro Fac Upp Upp Zhi Pro Res Tes Res Acc Com Machines Disabled 63 | . . . . 1 1 1 . 1 . . 1 8 . 3 23 . . . 2 . 7 1 . 1 . . 6 2 1 4 Max in Single Turn 15 | . . . . 1 1 1 . 1 . . 1 1 . . 15 . . . 1 . 6 1 . 1 . . 1 1 . 1 Garrison Access 7 | . . . . . 1 . . . . . 1 . . . 2 1 . . . . 1 . . . . 1 . . . . Phase Generator 1 | . . . . . . . . . . . . . . . . . . . . . . . . . . . . . . 1 Network Hub 2 | . . . . . . . . . . . . . . . 2 . . . . . . . . . . . . . . . Energy Cycler 1 | . . . . . . . . . . . . 1 . . . . . . . . . . . . . . . . . . Machines Sabotaged . | . . . . . . . . . . . . . . . . . . . . . . . . . . . . . . . Garrisons Compromised . | . . . . . . . . . . . . . . . . . . . . . . . . . . . . . . . Overloaded Fab Kills . | . . . . . . . . . . . . . . . . . . . . . . . . . . . . . . . Fab Network Shutdowns . | . . . . . . . . . . . . . . . . . . . . . . . . . . . . . . . Hacking | -11 -10 -10 -10 -9 -8 -7 -7 -7 -7 -6 -6 -6 -6 -6 -6 -5 -5 -5 -5 -4 -4 -4 -4 -4 -3 -3 -3 -2 -1 -1 --------- Run | Scr Mat Min Exi Min Mat Fac Low Low Zio Pro Fac Ext Cet Arc Hub Fac Upp Upp War Pro Fac Upp Upp Zhi Pro Res Tes Res Acc Com Machines Accessed 98 | . . . 1 . 3 2 . . . . 5 16 3 1 10 1 1 2 6 . 5 1 . 5 . 12 7 2 7 8 Terminals 64 | . . . . . 1 1 . . . . 4 16 3 . 8 . . 1 . . 1 1 . . . 7 6 2 6 7 Fabricators 3 | . . . . . . . . . . . . . . . . . . . . . 1 . . . . 1 . . 1 . Repair Stations 1 | . . . . . . . . . . . . . . . . . . . . . . . . . . 1 . . . . Recycling Units 6 | . . . . . 1 . . . . . . . . . . . . . . . 2 . . . . 2 . . . 1 Scanalyzers 1 | . . . . . . . . . . . . . . . . . . . . . . . . . . . 1 . . . Garrison Access 8 | . . . . . 1 1 . . . . 1 . . . 2 1 . . . . 1 . . . . 1 . . . . Total Hacks 359 | . . . 1 . 6 4 . . . . 17 59 11 1 28 2 1 7 11 . 31 9 . 18 . 45 29 18 25 36 Successful 202 | . . . 1 . 5 . . . . . 11 29 5 1 11 1 1 5 11 . 16 8 . 18 . 24 14 10 9 22 Failed 157 | . . . . . 1 4 . . . . 6 30 6 . 17 1 . 2 . . 15 1 . . . 21 15 8 16 14 Catastrophic 36 | . . . . . . 1 . . . . 1 4 4 . 3 1 . . . . 4 . . . . 5 2 . 6 5 Database Lockouts . | . . . . . . . . . . . . . . . . . . . . . . . . . . . . . . . Manual 212 | . . . . . 4 2 . . . . 15 30 9 . 21 . . 2 . . 20 4 . . . 26 13 14 22 30 Terminals 281 | . . . . . 3 2 . . . . 16 59 11 . 25 . . 6 . . 16 9 . . . 33 27 18 23 33 Fabricators 10 | . . . . . . . . . . . . . . . . . . . . . 6 . . . . 2 . . 2 . Repair Stations 4 | . . . . . . . . . . . . . . . . . . . . . . . . . . 4 . . . . Recycling Units 16 | . . . . . 2 . . . . . . . . . . . . . . . 6 . . . . 5 . . . 3 Scanalyzers 2 | . . . . . . . . . . . . . . . . . . . . . . . . . . . 2 . . . Garrison Access 13 | . . . . . 1 2 . . . . 1 . . . 3 2 . . . . 3 . . . . 1 . . . . Terminal Hacks 122 | . . . 1 . . . . . . . 7 20 3 1 3 . 1 5 11 . 7 6 . 18 . 9 8 7 6 9 Record 27 | . . . 1 . . . . . . . . . . 1 . . . 4 9 . . 6 . 6 . . . . . . Part Schematic 4 | . . . . . . . . . . . . . . . . . . . . . . . . 4 . . . . . . Robot Analysis 6 | . . . . . . . . . . . . 1 . . 1 . . . . . . . . 4 . . . . . . Prototype ID Bank 16 | . . . . . . . . . . . 4 1 . . . . . . . . 3 . . 4 . 3 . 1 . . Open Door 19 | . . . . . . . . . . . . 10 1 . . . 1 1 2 . . . . . . . . . 3 1 Level Access Points 1 | . . . . . . . . . . . . . . . . . . . . . . . . . . . . 1 . . Branch Access Points 2 | . . . . . . . . . . . . . . . . . . . . . 1 . . . . 1 . . . . Machine Index 1 | . . . . . . . . . . . . . . . . . . . . . . . . . . . . . . 1 Terminal Index 5 | . . . . . . . . . . . 1 . . . 1 . . . . . 1 . . . . . 1 1 . . Fabricator Index 1 | . . . . . . . . . . . . . . . . . . . . . . . . . . . 1 . . . Repair Station Index 1 | . . . . . . . . . . . . . . . . . . . . . . . . . . . 1 . . . Garrison Index 1 | . . . . . . . . . . . . . . . . . . . . . . . . . . . 1 . . . Alert Level 13 | . . . . . . . . . . . 1 3 . . 1 . . . . . 1 . . . . 3 1 1 1 1 Unreport Threat 12 | . . . . . . . . . . . 1 3 1 . . . . . . . . . . . . 2 . . 2 3 Locate Traps 2 | . . . . . . . . . . . . 1 . . . . . . . . 1 . . . . . . . . . Reprogram Traps 1 | . . . . . . . . . . . . . . . . . . . . . . . . . . . . . . 1 Dispatch Records 1 | . . . . . . . . . . . . . . . . . . . . . . . . . . . . 1 . . Transport Status 1 | . . . . . . . . . . . . . . . . . . . . . . . . . . . . 1 . . Recall Investigation 1 | . . . . . . . . . . . . . 1 . . . . . . . . . . . . . . . . . Hauler Manifests 1 | . . . . . . . . . . . . 1 . . . . . . . . . . . . . . . . . . Zone Layout 1 | . . . . . . . . . . . . . . . . . . . . . . . . . . . . 1 . . Protovariant Controls 3 | . . . . . . . . . . . . . . . . . . . . . . . . . . . 3 . . . Disengage Seal 2 | . . . . . . . . . . . . . . . . . . . . . . . . . . . . . . 2 Fabricator Hacks 1 | . . . . . . . . . . . . . . . . . . . . . 1 . . . . . . . . . Build 1 | . . . . . . . . . . . . . . . . . . . . . 1 . . . . . . . . . Repair Station Hacks 2 | . . . . . . . . . . . . . . . . . . . . . . . . . . 2 . . . . Scan Component 1 | . . . . . . . . . . . . . . . . . . . . . . . . . . 1 . . . . Repair 1 | . . . . . . . . . . . . . . . . . . . . . . . . . . 1 . . . . Recycling Unit Hacks 7 | . . . . . 1 . . . . . . . . . . . . . . . 2 . . . . 3 . . . 1 Report Inventory 6 | . . . . . 1 . . . . . . . . . . . . . . . 2 . . . . 2 . . . 1 Retrieve Components 1 | . . . . . . . . . . . . . . . . . . . . . . . . . . 1 . . . . Scanalyzer . | . . . . . . . . . . . . . . . . . . . . . . . . . . . . . . . Garrison Access Hacks 7 | . . . . . 1 . . . . . 1 . . . 2 1 . . . . 1 . . . . 1 . . . . Seal Access 7 | . . . . . 1 . . . . . 1 . . . 2 1 . . . . 1 . . . . 1 . . . . Unauthorized Hacks 180 | . . . . . 7 2 . . . . 9 22 4 . 21 . . 2 . . 13 5 . . . 26 15 11 14 29 Terminals 56 | . . . . . 2 . . . . . 3 9 2 . 6 . . . . . 2 2 . . . 8 5 3 3 11 Track 1 | . . . . . . . . . . . . . . . . . . . . . . . . . . . . . . 1 Assimilate 5 | . . . . . . . . . . . 1 . . . . . . . . . . . . . . 1 2 . . 1 Botnet 28 | . . . . . 1 . . . . . 1 7 2 . 2 . . . . . 1 . . . . 4 2 1 3 4 Detonate 6 | . . . . . . . . . . . . . . . 3 . . . . . . 1 . . . . . 1 . 1 Disrupt 6 | . . . . . . . . . . . . 1 . . . . . . . . . 1 . . . 2 . . . 2 Operators 10 | . . . . . 1 . . . . . 1 1 . . 1 . . . . . 1 . . . . 1 1 1 . 2 Fabricators 1 | . . . . . . . . . . . . . . . . . . . . . 1 . . . . . . . . . Siphon 1 | . . . . . . . . . . . . . . . . . . . . . 1 . . . . . . . . . Repair Stations 1 | . . . . . . . . . . . . . . . . . . . . . . . . . . 1 . . . . Mechanics 1 | . . . . . . . . . . . . . . . . . . . . . . . . . . 1 . . . . Recycling Units 4 | . . . . . 1 . . . . . . . . . . . . . . . 2 . . . . . . . . 1 Mask 4 | . . . . . 1 . . . . . . . . . . . . . . . 2 . . . . . . . . 1 Scanalyzers 1 | . . . . . . . . . . . . . . . . . . . . . . . . . . . 1 . . . Researchers 1 | . . . . . . . . . . . . . . . . . . . . . . . . . . . 1 . . . Garrison Access . | . . . . . . . . . . . . . . . . . . . . . . . . . . . . . . . Data Cores Recovered 2 | . . . . . . . . . . . . . . . . . . . . . . . . . . . . . 1 1 Used . | . . . . . . . . . . . . . . . . . . . . . . . . . . . . . . . Hacking Detections 70 | . . . . . 2 2 . . . . 4 16 4 . 7 . . 1 . . 3 1 . . . 10 6 2 6 6 Full Trace Events 4 | . . . . . . . . . . . . 1 1 . 2 . . . . . . . . . . . . . . . Feedback Events 1 | . . . . . . . . . . . . . . . 1 . . . . . . . . . . . . . . . Corruption 1 | . . . . . . . . . . . . . . . 1 . . . . . . . . . . . . . . . Feedback Blocked . | . . . . . . . . . . . . . . . . . . . . . . . . . . . . . . . Robot Schematics Acquired . | . . . . . . . . . . . . . . . . . . . . . . . . . . . . . . . Robots Built . | . . . . . . . . . . . . . . . . . . . . . . . . . . . . . . . Matter . | . . . . . . . . . . . . . . . . . . . . . . . . . . . . . . . Time . | . . . . . . . . . . . . . . . . . . . . . . . . . . . . . . . Total Robot Build Rating . | . . . . . . . . . . . . . . . . . . . . . . . . . . . . . . . Part Schematics Acquired 4 | . . . . . . . . . . . . . . . . . . . . . . . . 4 . . . . . . Parts Built 2 | . . . . . . . . . . . . . . . . . . . . . 2 . . . . . . . . . Matter 278 | . . . . . . . . . . . . . . . . . . . . . 278 . . . . . . . . . Time 69 | . . . . . . . . . . . . . . . . . . . . . 69 . . . . . . . . . Total Part Build Rating 18 | . . . . . . . . . . . . . . . . . . . . . 18 . . . . . . . . . Parts Repaired 1 | . . . . . . . . . . . . . . . . . . . . . . . . . . 1 . . . . Time 45 | . . . . . . . . . . . . . . . . . . . . . . . . . . 45 . . . . Parts Recycled . | . . . . . . . . . . . . . . . . . . . . . . . . . . . . . . . Recycled Matter . | . . . . . . . . . . . . . . . . . . . . . . . . . . . . . . . Retrieved Matter . | . . . . . . . . . . . . . . . . . . . . . . . . . . . . . . . Retrieved Components 9 | . . . . . . . . . . . . . . . . . . . . . . . . . . 9 . . . . Parts Scanalyzed . | . . . . . . . . . . . . . . . . . . . . . . . . . . . . . . . Part Schematics Acquired . | . . . . . . . . . . . . . . . . . . . . . . . . . . . . . . . Parts Damaged . | . . . . . . . . . . . . . . . . . . . . . . . . . . . . . . . Bothacking | -11 -10 -10 -10 -9 -8 -7 -7 -7 -7 -6 -6 -6 -6 -6 -6 -5 -5 -5 -5 -4 -4 -4 -4 -4 -3 -3 -3 -2 -1 -1 ------------ Run | Scr Mat Min Exi Min Mat Fac Low Low Zio Pro Fac Ext Cet Arc Hub Fac Upp Upp War Pro Fac Upp Upp Zhi Pro Res Tes Res Acc Com Used RIF Installer . | . . . . . . . . . . . . . . . . . . . . . . . . . . . . . . . Robots Hacked 1 | . . . . . . . . . . . . . . . . . . . . . . . . . . . . . . 1 Non-combat . | . . . . . . . . . . . . . . . . . . . . . . . . . . . . . . . Combat . | . . . . . . . . . . . . . . . . . . . . . . . . . . . . . . . Robot Hacks Applied . | . . . . . . . . . . . . . . . . . . . . . . . . . . . . . . . Manual 1 | . . . . . . . . . . . . . . . . . . . . . . . . . . . . . . 1 Relay Couplers Released . | . . . . . . . . . . . . . . . . . . . . . . . . . . . . . . . Robots Rewired 33 | . . . . . . . . 2 . 2 . 16 . . . . . . 5 . 4 . 4 . . . . . . . Allies Hacked 6 | . . . . . . . . . . . . . . . . . . . . . . . . . . . . . . 6 Hacks Repelled . | . . . . . . . . . . . . . . . . . . . . . . . . . . . . . . . Allies | -11 -10 -10 -10 -9 -8 -7 -7 -7 -7 -6 -6 -6 -6 -6 -6 -5 -5 -5 -5 -4 -4 -4 -4 -4 -3 -3 -3 -2 -1 -1 -------- Run | Scr Mat Min Exi Min Mat Fac Low Low Zio Pro Fac Ext Cet Arc Hub Fac Upp Upp War Pro Fac Upp Upp Zhi Pro Res Tes Res Acc Com Total Allies 123 | . . . . . . . . 2 . 2 1 33 5 . . . . . 5 . 4 . 4 . . 1 1 . 3 62 Largest Group 30 | . . . . . . . . 2 1 2 1 26 18 16 14 . . . 5 2 4 . 4 4 4 1 1 . 3 30 Highest-Rated Group 1663 | . . . . . . . . 52 32 61 26 933 950 794 731 . . . 245 109 166 . 143 143 143 26 44 . 359 1663 Highest-Rated Ally 222 | . . . . . . . . 32 32 32 26 156 156 94 94 . . . 60 60 60 . 38 38 38 26 44 . 124 222 Total Orders 50 | . . . . . . . . 1 1 . 8 . . . 6 . . . 6 3 8 . . 1 . 5 7 . . 4 STAY 3 | . . . . . . . . . . . 1 . . . . . . . . . . . . 1 . 1 . . . . GOTO 28 | . . . . . . . . 1 1 . 3 . . . 6 . . . 5 2 6 . . . . 2 1 . . 1 FOLLOW 8 | . . . . . . . . . . . 2 . . . . . . . 1 1 2 . . . . 2 . . . . EXPLORE 11 | . . . . . . . . . . . 2 . . . . . . . . . . . . . . . 6 . . 3 Ally Attacks 715 | . . . . . . . . 7 . 15 . 166 53 21 140 . . . 11 1 12 . . . . . . . 24 265 Total Damage 19323 | . . . . . . . . 268 . 270 . 3468 1255 582 4079 . . . 452 76 328 . . . . . . . 819 7726 Kills 119 | . . . . . . . . 2 . 1 . 37 13 4 28 . . . 6 . 2 . . . . . . . 5 21 Allies Corrupted 10 | . . . . . . . . . . . . . . . . . . . . . . . . . . . 1 . 1 8 Allies Melted . | . . . . . . . . . . . . . . . . . . . . . . . . . . . . . . . Intel | -11 -10 -10 -10 -9 -8 -7 -7 -7 -7 -6 -6 -6 -6 -6 -6 -5 -5 -5 -5 -4 -4 -4 -4 -4 -3 -3 -3 -2 -1 -1 ------- Run | Scr Mat Min Exi Min Mat Fac Low Low Zio Pro Fac Ext Cet Arc Hub Fac Upp Upp War Pro Fac Upp Upp Zhi Pro Res Tes Res Acc Com Robot Analysis Total 6 | . . . . . . . . . . . . 1 . . 1 . . . . . . . . 4 . . . . . . Derelict Logs Recovered 14 | . . 1 . . . . 1 1 2 2 . . . . . . . 1 . 2 . 2 2 . . . . . . . Drone Launches 24 | . . . . . . . . . . . 6 . . . . . . . . . 3 . . . . 2 9 . . 4 Drone Recoveries . | . . . . . . . . . . . . . . . . . . . . . . . . . . . . . . . Exploration | -11 -10 -10 -10 -9 -8 -7 -7 -7 -7 -6 -6 -6 -6 -6 -6 -5 -5 -5 -5 -4 -4 -4 -4 -4 -3 -3 -3 -2 -1 -1 ------------- Run | Scr Mat Min Exi Min Mat Fac Low Low Zio Pro Fac Ext Cet Arc Hub Fac Upp Upp War Pro Fac Upp Upp Zhi Pro Res Tes Res Acc Com Turns Passed 12776 | 74 242 138 121 301 247 573 309 378 443 498 511 715 309 80 450 133 316 202 567 612 466 333 392 77 242 821 878 882 476 990 Spaces Moved 16305 | 31 176 114 135 295 273 607 468 579 884 630 663 584 267 81 527 158 609 299 882 481 479 608 719 147 322 1054 1104 1451 542 1136 Core . | . . . . . . . . . . . . . . . . . . . . . . . . . . . . . . . Treads . | . . . . . . . . . . . . . . . . . . . . . . . . . . . . . . . Legs 4 | 4 . . . . . . . . . . . . . . . . . . . . . . . . . . . . . . Wheels 755 | 27 176 114 135 295 8 . . . . . . . . . . . . . . . . . . . . . . . . . Hover 15489 | . . . . . 225 590 468 579 884 630 663 584 267 81 527 158 609 299 882 481 479 608 719 147 322 1054 1104 1451 542 1136 Flight 57 | . . . . . 40 17 . . . . . . . . . . . . . . . . . . . . . . . . Fastest Speed 38 | 90 90 90 90 90 45 48 48 48 48 48 48 48 48 48 45 45 45 45 38 38 38 38 38 38 38 38 38 38 38 38 Average Speed 46 | 94 90 90 90 90 52 52 48 48 48 48 48 51 56 48 47 45 45 45 40 38 38 48 38 38 38 38 46 38 38 42 Slowest Speed 120 | 120 90 90 90 90 90 117 48 48 48 48 48 101 101 48 48 45 45 45 45 38 38 93 38 38 38 38 93 38 38 92 Overloaded Moves . | . . . . . . . . . . . . . . . . . . . . . . . . . . . . . . . Propulsion Burnouts . | . . . . . . . . . . . . . . . . . . . . . . . . . . . . . . . Robots Hopped . | . . . . . . . . . . . . . . . . . . . . . . . . . . . . . . . Cave-ins Triggered 1 | . . . . . . 1 . . . . . . . . . . . . . . . . . . . . . . . . Exploration Rate (%) 51 | 3 29 34 48 58 29 19 61 66 87 79 18 71 75 71 66 8 76 43 93 57 21 65 73 62 47 28 95 32 18 59 Regions Visited 30 Branch Regions 21 Pre-discovered Areas 7 | . . . 1 . . . . . 2 . . . . . . . . . . . . 1 . 3 . . . . . . Known Exits Taken 29 | . 1 1 1 1 1 1 1 1 1 1 1 1 1 1 1 1 1 1 1 1 1 1 1 1 1 1 1 1 1 . Unknown Exits Taken 1 | 1 . . . . . . . . . . . . . . . . . . . . . . . . . . . . . . Scrap Searched 22 | . . 1 . . . . 1 1 5 2 . . . . . . 2 1 . 2 . 3 4 . . . . . . . Spaces Dug 454 | . . . . . . 10 1 4 . 5 8 27 10 3 220 7 2 4 . 8 12 3 6 . 1 37 19 6 7 54 Terrain Destroyed 1067 | . . . . . . 26 1 4 . 34 82 30 31 4 385 37 11 6 11 31 18 14 12 . 1 54 80 10 18 167 Melee 232 | . . . . . . 10 1 4 . 5 8 9 10 3 16 7 2 4 . 8 12 3 6 . 1 37 19 6 7 54 Projectile 86 | . . . . . . . . . . 2 2 . 6 1 7 1 . 1 1 2 6 3 6 . . 17 6 4 11 10 AOE 749 | . . . . . . 16 . . . 27 72 21 15 . 362 29 9 1 10 21 . 8 . . . . 55 . . 103 Actions | -11 -10 -10 -10 -9 -8 -7 -7 -7 -7 -6 -6 -6 -6 -6 -6 -5 -5 -5 -5 -4 -4 -4 -4 -4 -3 -3 -3 -2 -1 -1 --------- Run | Scr Mat Min Exi Min Mat Fac Low Low Zio Pro Fac Ext Cet Arc Hub Fac Upp Upp War Pro Fac Upp Upp Zhi Pro Res Tes Res Acc Com Total 19915 | 52 232 149 134 311 348 748 511 652 900 747 787 921 371 105 643 189 630 337 1066 878 673 623 806 161 432 1292 1332 1719 735 1431 Wait 1500 | . 32 30 . 4 16 24 7 26 5 38 32 63 29 5 40 . . 19 74 367 97 . 17 . 105 43 79 99 146 103 Move 16274 | 30 175 113 134 294 272 605 467 578 883 629 662 583 266 80 526 157 608 298 881 480 478 607 718 146 321 1053 1103 1450 541 1136 Hop . | . . . . . . . . . . . . . . . . . . . . . . . . . . . . . . . Pick Up 29 | 1 1 . . 1 4 2 . 1 2 . 1 . 1 . . 1 1 . 2 . 1 . 1 2 . . 3 . 2 2 Fast Attach 114 | 6 1 1 . . 11 10 . 1 2 . 7 2 5 . 1 . . . 8 3 3 . 1 4 . 14 10 15 . 9 Attach 9 | . . . . . . 2 . . . . . . . . . . . . 1 1 . . . . . . 5 . . . Detach 22 | 2 1 . . . . 1 . . . . . . 1 . 1 . . . 1 . 1 . . . . 3 7 2 . 2 Swap 103 | . . . . . 3 4 2 2 2 3 16 13 8 2 1 1 1 . 4 2 3 3 3 . 2 . 12 5 . 11 Drop 118 | 1 1 1 . 1 13 12 . 1 3 1 14 1 4 . 1 1 1 . 7 1 1 . 2 4 . 13 12 16 . 6 Fire 461 | 12 15 . . 11 14 34 18 10 . 30 20 16 12 4 22 11 10 14 7 9 20 7 9 . 1 34 36 14 20 51 Melee 428 | . . . . . . 30 5 5 1 13 22 23 13 6 25 10 2 6 3 8 22 4 6 5 3 67 39 23 18 69 Ram 3 | . . . . . . . . . . . 1 . . . . . . . . . . . . . . . 1 1 . . Kick . | . . . . . . . . . . . . . . . . . . . . . . . . . . . . . . . Crush . | . . . . . . . . . . . . . . . . . . . . . . . . . . . . . . . Escape Stasis 14 | . . . . . . 1 . . . . . . . . . . . . . . . . . . . 13 . . . . Rewire 285 | . . . . . . . . 11 . 2 . 170 . . . . . . 32 . 35 . 35 . . . . . . . Trap . | . . . . . . . . . . . . . . . . . . . . . . . . . . . . . . . Miscellaneous 555 | . 6 4 . . 15 23 12 17 2 31 12 50 32 8 26 8 7 . 46 7 12 2 14 . . 52 25 94 8 42 Route ------- -11/Scrapyard -10/Materials -10/Mines -10/Exiles -9/Mines (discovered 2 exits: *Mat x2) -8/Materials -7/Factory (discovered 2 exits: *Fac / *Low) -7/Lower Caves -7/Lower Caves -7/Zion -6/Proximity Caves -6/Factory (discovered 2 exits: *Low / *Ext) -6/Extension (discovered 3 exits: *Fac x2 / *Cet) -6/Cetus (discovered 2 exits: *Fac / *Arc) -6/Archives (discovered 2 exits: *Hub x2) -6/Hub_04(d) (discovered 2 exits: *Fac x2) -5/Factory (discovered 2 exits: *Fac / *Upp) -5/Upper Caves -5/Upper Caves -5/Warlord -4/Proximity Caves -4/Factory (discovered 4 exits: Res / *Upp x2 / *Arm) -4/Upper Caves -4/Upper Caves (discovered 2 exits: Res / *Zhi) -4/Zhirov -3/Proximity Caves -3/Research (discovered 3 exits: *Res / *Tes x2) -3/Testing -2/Research (discovered 3 exits: *Acc x3) -1/Access (discovered 2 exits: Sur / *Com) -1/Command (discovered 1 exit: *Sur) History --------- Turn | Location | Event 1 | -11/Scrapyard | Upgraded with Propulsion slot (x1) 1 | -11/Scrapyard | Upgraded with Utility slot (x1) 1 | -11/Scrapyard | Upgraded with Weapon slot (x1) 1 | -11/Scrapyard | Discovered new exit (range 1) 75 | -11/Scrapyard | Entered Materials 201 | -10/Materials | Met 8R-AWN 299 | -10/Materials | Discovered new exit (range 15) 305 | -10/Materials | Build established: Mutant 316 | -10/Materials | Identified exit to Mines 317 | -10/Materials | Entered Mines 318 | -10/Mines | Assembled infested the area 318 | -10/Mines | Followed 8R-AWN into the Mines 323 | -10/Mines | Assisted by a Guerilla fighting off Assembled 440 | -10/Mines | Learned Materials stockpile data 446 | -10/Mines | Discovered new exit (range 5) 454 | -10/Mines | Identified exit to Exiles 455 | -10/Mines | Entered Exiles 476 | -10/Exiles | Welcomed by 8R-AWN 492 | -10/Exiles | Met EX-HEX 528 | -10/Exiles | Met EX-DEC 541 | -10/Exiles | Learned location of Zion (-7) 567 | -10/Exiles | Discovered new exit (range 12) 575 | -10/Exiles | Identified exit to Mines 576 | -10/Exiles | Entered Mines 602 | -9/Mines | Reached level 2 633 | -9/Mines | Discovered new exit (range 9) 642 | -9/Mines | Identified exit to Materials 793 | -9/Mines | Received a Rocket Launcher from a helpful Derelict 854 | -9/Mines | Discovered exit to Materials (range 10) 871 | -9/Mines | Excavation squad dispatched 871 | -9/Mines | A large section of the Mines collapsed 877 | -9/Mines | Entered Materials 879 | -8/Materials | Reached level 3 905 | -8/Materials | Upgraded with Propulsion slot (x1) 993 | -8/Materials | Upgraded with Utility slot (x1) 1071 | -8/Materials | Discovered new exit (range 12) 1123 | -8/Materials | Identified exit to Factory 1124 | -8/Materials | Entered Factory 1126 | -7/Factory | Reached level 4 1131 | -7/Factory | Upgraded with Weapon slot (x1) 1166 | -7/Factory | Upgraded with Utility slot (x1) 1274 | -7/Factory | Reached level 5 1291 | -7/Factory | Discovered new exit (range 8) 1294 | -7/Factory | Identified exit to Factory 1475 | -7/Factory | Upgraded with Utility slot (x1) 1545 | -7/Factory | Build established: Scout 1622 | -7/Factory | Crushed by falling debris 1660 | -7/Factory | Discovered new exit (range 9) 1664 | -7/Factory | Identified exit to Lower Caves 1697 | -7/Factory | Entered Lower Caves 1798 | -7/Lower Caves | Reached level 6 1938 | -7/Lower Caves | Discovered new exit (range 16) 1943 | -7/Lower Caves | Learned Factory terminal intel 1950 | -7/Lower Caves | Identified exit to Lower Caves 2006 | -7/Lower Caves | Entered another Lower Caves area 2068 | -7/Lower Caves | Attracted the attention of an 0b10 outpost 2119 | -7/Lower Caves | Reached level 7 2208 | -7/Lower Caves | Learned Factory stockpile data 2326 | -7/Lower Caves | Discovered new exit (range 9) 2335 | -7/Lower Caves | Identified exit to Zion 2384 | -7/Lower Caves | Entered Zion 2384 | -7/Zion | Accompanied by 1 ally 2444 | -7/Zion | Discovered new exit (range 15) 2459 | -7/Zion | System corruption cleaned by Quarantine Array 2469 | -7/Zion | Learned Factory emergency access door positions 2531 | -7/Zion | Learned location of Warlord (-5) 2682 | -7/Zion | Received a hallucinogenic algorithm 2827 | -7/Zion | Identified exit to Proximity Caves 2827 | -7/Zion | Entered Proximity Caves 2827 | -6/Proximity Caves | Accompanied by 1 ally 2829 | -6/Proximity Caves | Reached level 8 2832 | -6/Proximity Caves | Learned location of 1 exit from Lower Caves 2925 | -6/Proximity Caves | Attracted the attention of an 0b10 checkpoint 3076 | -6/Proximity Caves | Attracted the attention of an 0b10 outpost 3178 | -6/Proximity Caves | Reached level 9 3179 | -6/Proximity Caves | Learned Factory non-interactive machine intel 3225 | -6/Proximity Caves | Discovered exit to Factory (range 10) 3325 | -6/Proximity Caves | Entered Factory 3327 | -6/Factory | Reached level 10 3328 | -6/Factory | Loaded intel: 211 non-interactive machine locations 3329 | -6/Factory | Loaded intel: 22 terminal locations 3437 | -6/Factory | Upgraded with Utility slot (x1) 3532 | -6/Factory | Upgraded with Utility slot (x1) 3540 | -6/Factory | Discovered new exit (range 32) 3569 | -6/Factory | Core integrity fell below 50% 3587 | -6/Factory | Identified exit to Lower Caves 3635 | -6/Factory | Found Unknown Protection 3635 | -6/Factory | Identified Powered Armor 3717 | -6/Factory | Build established: Scavenger-Scout 3720 | -6/Factory | Discovered new exit (range 15) 3732 | -6/Factory | Identified exit to Extension 3765 | -6/Factory | Reached level 11 3836 | -6/Factory | Entered Extension 3844 | -6/Extension | Disrupted transfer network 3865 | -6/Extension | Rescued a captive Derelict 3866 | -6/Extension | Rescued a captive Derelict 3881 | -6/Extension | Rescued a captive Derelict 3882 | -6/Extension | Rescued a captive Derelict 3890 | -6/Extension | Rescued a captive Derelict 3891 | -6/Extension | Rescued a captive Derelict 3892 | -6/Extension | Rescued a captive Derelict 3909 | -6/Extension | Reached level 12 3956 | -6/Extension | Rescued a captive Derelict 3965 | -6/Extension | Rescued A7 4041 | -6/Extension | Upgraded with Power slot (x1) 4120 | -6/Extension | Reached level 13 4159 | -6/Extension | Rescued a captive Derelict 4179 | -6/Extension | Spotted B-75 Beast 4188 | -6/Extension | Destroyed B-75 Beast 4189 | -6/Extension | Spotted B-75 Beast 4203 | -6/Extension | Destroyed B-75 Beast 4219 | -6/Extension | Reached level 14 4256 | -6/Extension | Discovered new exit (range 3) 4257 | -6/Extension | Identified exit to Factory 4295 | -6/Extension | Rescued a captive Derelict 4295 | -6/Extension | Rescued a captive Derelict 4305 | -6/Extension | Rescued a captive Derelict 4305 | -6/Extension | Rescued a captive Derelict 4326 | -6/Extension | Reached level 15 4344 | -6/Extension | Energy Cycler disabled 4345 | -6/Extension | Rescued a captive Derelict 4345 | -6/Extension | Rescued a captive Derelict 4351 | -6/Extension | Reached level 16 4353 | -6/Extension | Rescued a captive Derelict 4353 | -6/Extension | Rescued a captive Derelict 4443 | -6/Extension | Reached level 17 4489 | -6/Extension | Discovered exit to Factory (range 13) 4490 | -6/Extension | Discovered new exit (range 6) 4499 | -6/Extension | Identified exit to Cetus 4536 | -6/Extension | Build established: Commander-Scout 4551 | -6/Extension | Entered Cetus 4551 | -6/Cetus | Accompanied by 18 allies 4556 | -6/Cetus | Acquired a Cetus Manufacturing Module code from A7 4561 | -6/Cetus | Spotted Cetus Guard 4561 | -6/Cetus | Spotted Cetus Guard 4565 | -6/Cetus | Spotted Cetus Guard 4568 | -6/Cetus | Spotted Cetus Guard 4572 | -6/Cetus | Reached level 18 4572 | -6/Cetus | Allies destroyed Cetus Guard 4573 | -6/Cetus | Destroyed Cetus Guard 4574 | -6/Cetus | Allies destroyed Cetus Guard 4576 | -6/Cetus | Allies destroyed Cetus Guard 4625 | -6/Cetus | Started Cetus Manufacturing Module 4650 | -6/Cetus | Manufactured an Enhanced Grunt 4655 | -6/Cetus | Discovered new exit (range 15) 4675 | -6/Cetus | Manufactured an Enhanced Grunt 4681 | -6/Cetus | Spotted Cetus Guard 4681 | -6/Cetus | Spotted Cetus Guard 4684 | -6/Cetus | Spotted Cetus Guard 4687 | -6/Cetus | Allies destroyed Cetus Guard 4689 | -6/Cetus | Spotted Cetus Guard 4692 | -6/Cetus | Allies destroyed Cetus Guard 4693 | -6/Cetus | Destroyed Cetus Guard 4700 | -6/Cetus | Manufactured an Enhanced Grunt 4700 | -6/Cetus | Destroyed Cetus Guard 4704 | -6/Cetus | Discovered exit to Factory (range 16) 4710 | -6/Cetus | Met Revision 17 4725 | -6/Cetus | Manufactured an Enhanced Grunt 4750 | -6/Cetus | Manufactured an Enhanced Grunt 4777 | -6/Cetus | Reached level 19 4808 | -6/Cetus | Destroyed A7 4813 | -6/Cetus | Extracted ID and sensor layout for unrecognized location from A7's data core 4814 | -6/Cetus | Upgraded with Utility slot (x1) 4828 | -6/Cetus | Identified exit to Archives 4860 | -6/Cetus | Entered Archives 4860 | -6/Archives | Accompanied by 16 allies 4888 | -6/Archives | Discovered new exit (range 16) 4894 | -6/Archives | Unable to access archive contents 4897 | -6/Archives | Discovered new exit (range 16) 4919 | -6/Archives | Identified exit to Hub_04(d) 4940 | -6/Archives | Entered Hub_04(d) 4940 | -6/Hub_04(d) | Accompanied by 14 allies 4987 | -6/Hub_04(d) | Disrupted transfer network 5088 | -6/Hub_04(d) | Reached level 20 5089 | -6/Hub_04(d) | Discovered exit to Factory (range 7) 5213 | -6/Hub_04(d) | Discovered exit to Factory (range 13) 5290 | -6/Hub_04(d) | First assault squad dispatched 5344 | -6/Hub_04(d) | Reached level 21 5349 | -6/Hub_04(d) | High security lockdown imminent 5356 | -6/Hub_04(d) | Network Hub disabled 5356 | -6/Hub_04(d) | Spotted Lightning 5356 | -6/Hub_04(d) | Spotted Lightning 5356 | -6/Hub_04(d) | Spotted Lightning 5356 | -6/Hub_04(d) | Spotted Lightning 5356 | -6/Hub_04(d) | Spotted Lightning 5356 | -6/Hub_04(d) | Spotted Lightning 5357 | -6/Hub_04(d) | Spotted Lightning 5357 | -6/Hub_04(d) | Spotted Lightning 5364 | -6/Hub_04(d) | Network Hub disabled 5364 | -6/Hub_04(d) | Spotted Lightning 5364 | -6/Hub_04(d) | Spotted Lightning 5365 | -6/Hub_04(d) | Spotted Lightning 5390 | -6/Hub_04(d) | Entered Factory 5391 | -5/Factory | Identified exit to Upper Caves 5473 | -5/Factory | Discovered new exit (range 15) 5482 | -5/Factory | Identified exit to Factory 5523 | -5/Factory | Entered Upper Caves 5525 | -5/Upper Caves | Reached level 22 5608 | -5/Upper Caves | Attracted the attention of an 0b10 checkpoint 5654 | -5/Upper Caves | Build established: Scavenger-Scout 5667 | -5/Upper Caves | Discovered new exit (range 14) 5673 | -5/Upper Caves | Identified exit to Upper Caves 5839 | -5/Upper Caves | Entered another Upper Caves area 5847 | -5/Upper Caves | Encountered a Warlord checkpoint 5860 | -5/Upper Caves | Spotted B-75 Beast 5925 | -5/Upper Caves | Destroyed B-75 Beast 6005 | -5/Upper Caves | Discovered new exit (range 10) 6009 | -5/Upper Caves | Identified exit to Warlord 6022 | -5/Upper Caves | Learned location of 1 exit from Factory 6029 | -5/Upper Caves | Attracted the attention of an 0b10 base 6029 | -5/Upper Caves | Learned 8 Research zone layouts 6029 | -5/Upper Caves | Learned Extension stockpile data 6041 | -5/Upper Caves | Entered Warlord 6057 | -5/Warlord | System corruption cleaned by Quarantine Array 6083 | -5/Warlord | Learned Quarantine security intel 6083 | -5/Warlord | Learned Research repair station intel 6083 | -5/Warlord | Learned Research scanalyzer intel 6084 | -5/Warlord | Learned Armory trap positions 6084 | -5/Warlord | Learned Testing trap positions 6084 | -5/Warlord | Learned Research emergency access door positions 6123 | -5/Warlord | Visited the Vortex Lab 6128 | -5/Warlord | Upgraded with Propulsion slot (x1) 6131 | -5/Warlord | Found Prototype Energy Gun 6143 | -5/Warlord | Warlord's base attacked by MAIN.C 6257 | -5/Warlord | Met Warlord 6286 | -5/Warlord | Found Prototype Reactor 6286 | -5/Warlord | Identified Vortex Chain Reactor 6289 | -5/Warlord | Upgraded with Utility slot (x1) 6289 | -5/Warlord | Found Prototype Device 6289 | -5/Warlord | Identified Exp. Phase Shifter 6292 | -5/Warlord | Upgraded with Utility slot (x1) 6294 | -5/Warlord | Found Prototype Processor 6294 | -5/Warlord | Identified Exp. Target Analyzer 6360 | -5/Warlord | Core integrity fell below 50% 6378 | -5/Warlord | Warlord forces counterattacked 6480 | -5/Warlord | Opened side exit 6530 | -5/Warlord | Discovered new exit (range 14) 6545 | -5/Warlord | Identified exit to Proximity Caves 6608 | -5/Warlord | Entered Proximity Caves 6608 | -4/Proximity Caves | Accompanied by 2 allies 6610 | -4/Proximity Caves | Reached level 23 6687 | -4/Proximity Caves | Found Alien Artifact 6687 | -4/Proximity Caves | Identified Core Expander 6687 | -4/Proximity Caves | Installed Core Expander, added new Weapon slot 6849 | -4/Proximity Caves | Reached level 24 6913 | -4/Proximity Caves | Learned Research security intel 6913 | -4/Proximity Caves | Upgraded with Utility slot (x1) 7081 | -4/Proximity Caves | Received a Behemoth hack from an annoying Tinkerer 7220 | -4/Proximity Caves | Build established: Scavenger-Ninja 7220 | -4/Proximity Caves | Entered Factory 7220 | -4/Factory | Accompanied by 1 ally 7221 | -4/Factory | Identified exit to Research 7355 | -4/Factory | Fabricated Enh. Quantum Rifle (x2) 7470 | -4/Factory | Identified exit to Upper Caves 7470 | -4/Factory | Identified exit to Armory 7473 | -4/Factory | Upgraded with Utility slot (x1) 7576 | -4/Factory | Reached level 25 7686 | -4/Factory | Entered Upper Caves 7718 | -4/Upper Caves | Learned Research terminal intel 7801 | -4/Upper Caves | Discovered new exit (range 12) 7806 | -4/Upper Caves | Identified exit to Upper Caves 7877 | -4/Upper Caves | Learned Research stockpile data 7980 | -4/Upper Caves | Learned Research terminal intel 7980 | -4/Upper Caves | Learned Armory emergency access door positions 8019 | -4/Upper Caves | Entered another Upper Caves area 8024 | -4/Upper Caves | Discovered exit to Research (range 11) 8040 | -4/Upper Caves | Learned 4 Research zone layouts 8077 | -4/Upper Caves | Ambushed by wild Derelicts 8132 | -4/Upper Caves | Discovered new exit (range 8) 8137 | -4/Upper Caves | Identified exit to Zhirov 8342 | -4/Upper Caves | Attacked by a delusional Derelict stockpiling Unaware 8411 | -4/Upper Caves | Entered Zhirov 8411 | -4/Zhirov | Accompanied by 4 allies 8411 | -4/Zhirov | Discovered new exit (range 3) 8419 | -4/Zhirov | Met Zhirov 8427 | -4/Zhirov | Learned location of Quarantine (-2) 8427 | -4/Zhirov | Learned location of Testing (-3) 8427 | -4/Zhirov | Learned location of Command (-1) 8433 | -4/Zhirov | Zhirov requested help retrieving the SGEMP Prototype 8439 | -4/Zhirov | Found Alien Artifact 8439 | -4/Zhirov | Identified Integrated Dissipator 8439 | -4/Zhirov | Installed Integrated Dissipator, increased core heat dissipation (+2%) 8473 | -4/Zhirov | Found Alien Artifact 8488 | -4/Zhirov | Identified exit to Proximity Caves 8488 | -4/Zhirov | Entered Proximity Caves 8488 | -3/Proximity Caves | Accompanied by 4 allies 8490 | -3/Proximity Caves | Reached level 26 8725 | -3/Proximity Caves | Discovered exit to Research (range 16) 8730 | -3/Proximity Caves | Entered Research 8731 | -3/Research | Identified exit to Testing 8732 | -3/Research | Identified exit to Research 8732 | -3/Research | Reached level 27 8736 | -3/Research | Loaded intel: 18 terminal locations 8737 | -3/Research | Loaded intel: 4 repair station locations 8738 | -3/Research | Loaded intel: 6 scanalyzer locations 8830 | -3/Research | Found Prototype Launcher 8830 | -3/Research | Identified Mni. Smartbomb Launcher 9321 | -3/Research | Repaired Broken Exp. Coolant Injector? 9403 | -3/Research | Reached level 28 9458 | -3/Research | Spotted B-86 Titan 9551 | -3/Research | Entered Testing 9551 | -3/Testing | Accompanied by 2 allies 9552 | -3/Testing | Loaded intel: 10 trap records 9565 | -3/Testing | Spotted Superbehemoth 9616 | -3/Testing | Found Prototype Processor 9616 | -3/Testing | Identified Exp. Signal Interpreter 9636 | -3/Testing | Discovered exit to Research (range 16) 9716 | -3/Testing | Upgraded with Utility slot (x1) 9825 | -3/Testing | Found Prototype Device 9825 | -3/Testing | Identified AEGIS Remote Shield 10149 | -3/Testing | Found Prototype Slashing Weapon 10149 | -3/Testing | Identified Vibroblade 10156 | -3/Testing | Spotted Striker 10156 | -3/Testing | Spotted Striker 10158 | -3/Testing | Spotted Alpha 7 10194 | -3/Testing | Core integrity fell below 50% 10202 | -3/Testing | Superbehemoth self-activated to run performance analysis 10232 | -3/Testing | Destroyed Striker 10249 | -3/Testing | Destroyed Striker 10252 | -3/Testing | Core integrity fell below 20% 10281 | -3/Testing | Destroyed Alpha 7 10303 | -3/Testing | Reached level 29 10342 | -3/Testing | Stole the SGEMP Prototype 10429 | -3/Testing | Entered Research 10429 | -2/Research | Warlord forces began assault on 0b10 10430 | -2/Research | Loaded intel: 21 terminal locations 10430 | -2/Research | Core integrity fell below 50% 10430 | -2/Research | Core integrity fell below 20% 10431 | -2/Research | Reached level 30 10436 | -2/Research | Identified exit to Access 10539 | -2/Research | Research machine network offline 10553 | -2/Research | Met up with Warlord 10622 | -2/Research | Borebot progress halted 10657 | -2/Research | Borebot progress halted 10696 | -2/Research | Spotted B-90 Cyclops 10844 | -2/Research | Found Prototype Slashing Weapon 10844 | -2/Research | Identified Particle Cleaver 10878 | -2/Research | Borebot progress halted 10880 | -2/Research | Borebot progress halted 11014 | -2/Research | Spotted Striker 11073 | -2/Research | Found Prototype Processor 11073 | -2/Research | Identified Exp. Core Analyzer 11112 | -2/Research | Spotted Striker 11117 | -2/Research | Spotted Striker 11130 | -2/Research | Destroyed Striker 11311 | -2/Research | Entered Access 11312 | -1/Access | Loaded intel: 106 machine locations 11312 | -1/Access | Loaded intel: 67 trap records 11312 | -1/Access | Identified exit to Surface 11312 | -1/Access | Discovered exit to Surface (range 123) 11312 | -1/Access | Identified exit to Command 11312 | -1/Access | Discovered exit to Command (range 228) 11312 | -1/Access | Delivered the SGEMP Prototype to Zhirov 11312 | -1/Access | Zhirov transferred Access data 11312 | -1/Access | Reached level 31 11313 | -1/Access | Reached level 32 11477 | -1/Access | Reached level 33 11699 | -1/Access | Zhirov warped through subspace 11787 | -1/Access | Entered Command 11789 | -1/Command | Reached level 34 11833 | -1/Command | Found Prototype Device 11833 | -1/Command | Identified Exp. Force Field 11906 | -1/Command | Disengaged cave seal 11941 | -1/Command | Upgraded with Utility slot (x1) 12048 | -1/Command | Spotted B-99 Colossus 12213 | -1/Command | Spotted B-99 Colossus 12257 | -1/Command | Phase Generator disabled 12257 | -1/Command | Reached level 35 12292 | -1/Command | Disengaged cave seal 12292 | -1/Command | Derelicts emerged from the dark tunnel 12297 | -1/Command | Befriended a Behemoth using the annoying Tinkerer's hack 12298 | -1/Command | Spotted Striker 12572 | -1/Command | First assault squad dispatched 12607 | -1/Command | Spotted M Guard 12607 | -1/Command | Spotted M Guard 12607 | -1/Command | Spotted Combat Programmer 12609 | -1/Command | Spotted Combat Programmer 12628 | -1/Command | System corruption reached 10% 12635 | -1/Command | Core integrity fell below 50% 12649 | -1/Command | Identified Vortex Rail 12658 | -1/Command | Core integrity fell below 20% 12662 | -1/Command | Met MAIN.C 12662 | -1/Command | Reached level 36 12669 | -1/Command | 0b10 Conduit disabled 12746 | -1/Command | Discovered exit to Surface (range 13) 12769 | -1/Command | System corruption reached 30% 12777 | -1/Command | Destroyed by S-43 Plague with Heavy Machine Gun Last Messages --------------- 12746_ Penetrated by EMDS Slug. 12746_ EXIT=FOUND: SURFACE 12752_ Sneak attack on R-10 Processor. 12752_ Destroyed Hpw. Tractor Beam. 12752_ Destroyed Com. Wheel. 12752_ Destroyed Imp. Ion Engine. 12752_ Destroyed Com. Wheel. 12757_ Acquired Cmb. Linear Gravjet. 12758_ W0X